fUST/lending_fUST_20250518
["ID","MTS","AMOUNT","RATE_DAILY","PERIOD"]
[361439115,1747567837511,-450.0,0.00013835,2]
[361439117,1747567837521,-450.0,0.00013835,2]
[361439119,1747567837530,-450.0,0.00013835,2]
[361439121,1747567837539,-450.0,0.00013835,2]
[361439123,1747567837548,-507.83,0.00013835,2]
[361439125,1747567837557,-450.0,0.00013835,2]
[361439127,1747567837567,-844.84,0.00013835,2]
[361439129,1747567837576,-450.0,0.00013835,2]
[361439131,1747567837584,-450.0,0.00013835,2]
[361439133,1747567837594,-450.0,0.00013835,2]
[361439135,1747567837603,-450.0,0.00013835,2]
[361439137,1747567837612,-450.0,0.00013835,2]
[361439139,1747567837621,-450.0,0.00013835,2]
[361439141,1747567837630,-450.0,0.00013835,2]
[361439143,1747567837640,-450.0,0.00013835,2]
[361439145,1747567837650,-577.38,0.00013835,2]
[361439147,1747567837659,-450.0,0.00013835,2]
[361439149,1747567837669,-450.0,0.00013835,2]
[361439151,1747567837679,-450.0,0.00013835,2]
[361439153,1747567837689,-321.56,0.00013835,2]
[361439155,1747567837699,-450.0,0.00013835,2]
[361439157,1747567837709,-302.36599431,0.0001389,2]
[361439159,1747567837719,-500.0,0.00013899,2]
[361439161,1747567837729,-500.0,0.00013899,2]
[361439163,1747567837739,-500.0,0.00013899,2]
[361439166,1747567837750,-228.90421741,0.00013899,2]
[361439168,1747567837760,-500.0,0.00013899,2]
[361439170,1747567837770,-500.0,0.00013899,2]
[361439172,1747567837779,-500.0,0.00013899,2]
[361439175,1747567837788,-500.0,0.00013899,2]
[361439177,1747567837798,-500.0,0.00013899,2]
[361439179,1747567837807,-500.0,0.00013899,2]
[361439181,1747567837817,-196.39697037,0.00013899,2]
[361439185,1747567837831,-500.0,0.00013899,2]
[361439188,1747567837840,-593.51974961,0.00013899,2]
[361439191,1747567837849,-500.0,0.00013899,2]
[361439194,1747567837859,-500.0,0.00013899,2]
[361439197,1747567837868,-500.0,0.00013899,2]
[361439200,1747567837877,-500.0,0.00013899,2]
[361439202,1747567837886,-500.0,0.00013899,2]
[361439204,1747567837895,-500.0,0.00013899,2]
[361439206,1747567837905,-209.34082158,0.00013899,2]
[361439208,1747567837915,-500.0,0.00013899,2]
[361439210,1747567837925,-389.62784379,0.00013899,2]
[361439212,1747567837934,-500.0,0.00013899,2]
[361439215,1747567837943,-500.0,0.00013899,2]
[361439218,1747567837952,-204.57093817,0.00013899,2]
[361439221,1747567837962,-4391.05865448,0.000139,2]
[361439224,1747567837972,-450.0,0.00013972,2]
[361439226,1747567837981,-450.0,0.00013972,2]
[361439228,1747567837990,-450.0,0.00013972,2]
[361439230,1747567837999,-450.0,0.00013972,2]
[361439232,1747567838011,-450.0,0.00013972,2]
[361439233,1747567838020,-450.0,0.00013972,2]
[361439235,1747567838029,-450.0,0.00013972,2]
[361439237,1747567838039,-450.0,0.00013972,2]
[361439239,1747567838048,-450.0,0.00013972,2]
[361439241,1747567838057,-450.0,0.00013972,2]
[361439243,1747567838067,-450.0,0.00013972,2]
[361439244,1747567838076,-507.83,0.00013972,2]
[361439245,1747567838085,-450.0,0.00013972,2]
[361439246,1747567838094,-844.84,0.00013972,2]
[361439247,1747567838103,-450.0,0.00013972,2]
[361439248,1747567838112,-450.0,0.00013972,2]
[361439249,1747567838121,-450.0,0.00013972,2]
[361439250,1747567838130,-450.0,0.00013972,2]
[361439251,1747567838139,-450.0,0.00013972,2]
[361439252,1747567838148,-450.0,0.00013972,2]
[361439253,1747567838158,-450.0,0.00013972,2]
[361439254,1747567838167,-450.0,0.00013972,2]
[361439255,1747567838176,-577.38,0.00013972,2]
[361439256,1747567838186,-450.0,0.00013972,2]
[361439257,1747567838195,-450.0,0.00013972,2]
[361439258,1747567838204,-450.0,0.00013972,2]
[361439259,1747567838213,-450.0,0.00013972,2]
[361439260,1747567838223,-180.0,0.00014098,2]
[361439261,1747567838232,-398.26609169,0.00014109,2]
[361439262,1747567838241,-450.0,0.00014109,2]
[361439263,1747567838250,-450.0,0.00014109,2]
[361439264,1747567838259,-450.0,0.00014109,2]
[361439266,1747567838269,-450.0,0.00014109,2]
[361439267,1747567838278,-450.0,0.00014109,2]
[361439269,1747567838287,-450.0,0.00014109,2]
[361439271,1747567838297,-450.0,0.00014109,2]
[361439273,1747567838306,-450.0,0.00014109,2]
[361439275,1747567838315,-450.0,0.00014109,2]
[361439277,1747567838325,-450.0,0.00014109,2]
[361439279,1747567838334,-507.83,0.00014109,2]
[361439281,1747567838343,-450.0,0.00014109,2]
[361439283,1747567838352,-844.84,0.00014109,2]
[361439285,1747567838361,-450.0,0.00014109,2]
[361439287,1747567838370,-450.0,0.00014109,2]
[361439289,1747567838379,-450.0,0.00014109,2]
[361439291,1747567838388,-450.0,0.00014109,2]
[361439293,1747567838398,-450.0,0.00014109,2]
[361439295,1747567838408,-450.0,0.00014109,2]
[361439297,1747567838418,-450.0,0.00014109,2]
[361439299,1747567838428,-450.0,0.00014109,2]
[361439301,1747567838437,-577.38,0.00014109,2]
[361439303,1747567838447,-185.18,0.00014109,2]
[361439305,1747567838456,-450.0,0.00014109,2]
[361439307,1747567838466,-450.0,0.00014109,2]
[361439309,1747567838476,-450.0,0.00014109,2]
[361439311,1747567838485,-450.0,0.00014246,2]
[361439313,1747567838494,-450.0,0.00014246,2]
[361439315,1747567838504,-450.0,0.00014246,2]
[361439317,1747567838513,-450.0,0.00014246,2]
[361439319,1747567838522,-450.0,0.00014246,2]
[361439321,1747567838531,-450.0,0.00014246,2]
[361439323,1747567838540,-450.0,0.00014246,2]
[361439325,1747567838549,-450.0,0.00014246,2]
[361439327,1747567838558,-450.0,0.00014246,2]
[361439329,1747567838568,-507.83,0.00014246,2]
[361439331,1747567838577,-450.0,0.00014246,2]
[361439333,1747567838586,-844.84,0.00014246,2]
[361439335,1747567838595,-450.0,0.00014246,2]
[361439337,1747567838605,-450.0,0.00014246,2]
[361439339,1747567838614,-380.91,0.00014246,2]
[361439341,1747567838624,-450.0,0.00014246,2]
[361439343,1747567838633,-417.80396048,0.00014246,2]
[361439345,1747567838643,-505.35,0.00014246,2]
[361439347,1747567838652,-450.0,0.00014246,2]
[361439349,1747567838662,-450.0,0.00014246,2]
[361439351,1747567838671,-577.38,0.00014246,2]
[361439353,1747567838680,-450.0,0.00014246,2]
[361439355,1747567838689,-450.0,0.00014246,2]
[361439357,1747567838699,-450.0,0.00014246,2]
[361439359,1747567838708,-4391.05865446,0.00014279,2]
[361439361,1747567838717,-210.76,0.00014383,2]
[361439363,1747567838726,-416.72,0.00014383,2]
[361439365,1747567838736,-450.0,0.00014383,2]
[361439367,1747567838745,-450.0,0.00014383,2]
[361439369,1747567838755,-450.0,0.00014383,2]
[361439371,1747567838764,-450.0,0.00014383,2]
[361439373,1747567838774,-450.0,0.00014383,2]
[361439375,1747567838783,-507.83,0.00014383,2]
[361439377,1747567838793,-450.0,0.00014383,2]
[361439379,1747567838803,-844.84,0.00014383,2]
[361439381,1747567838812,-450.0,0.00014383,2]
[361439383,1747567838822,-450.0,0.00014383,2]
[361439385,1747567838833,-450.0,0.00014383,2]
[361439387,1747567838843,-443.43,0.00014383,2]
[361439389,1747567838851,-450.0,0.00014383,2]
[361439407,1747567839002,-577.38,0.00014383,2]
[361439409,1747567839012,-450.0,0.00014383,2]
[361439411,1747567839022,-450.0,0.00014383,2]
[361439413,1747567839031,-450.0,0.00014383,2]
[361439415,1747567839041,-250.0,0.00014411,2]
[361439417,1747567839050,-160.0,0.000145,2]
[361439419,1747567839059,-160.0,0.000145,2]
[361439421,1747567839068,-160.0,0.000145,2]
[361439423,1747567839078,-12636.50182523,0.000145,2]
[361439425,1747567839087,-422.53311782,0.000145,2]
[361439427,1747567839096,-160.0,0.000145,2]
[361439429,1747567839106,-212.32903618,0.000145,2]
[361439431,1747567839115,-997.93649947,0.000145,2]
[361439433,1747567839124,-160.0,0.000145,2]
[361439435,1747567839133,-160.0,0.000145,2]
[361439437,1747567839142,-450.0,0.0001452,2]
[361439439,1747567839151,-450.0,0.0001452,2]
[361439441,1747567839160,-450.0,0.0001452,2]
[361439443,1747567839169,-450.0,0.0001452,2]
[361439445,1747567839178,-450.0,0.0001452,2]
[361439447,1747567839187,-507.83,0.0001452,2]
[361439449,1747567839196,-450.0,0.0001452,2]
[361439451,1747567839205,-844.84,0.0001452,2]
[361439453,1747567839214,-450.0,0.0001452,2]
[361439455,1747567839224,-450.0,0.0001452,2]
[361439457,1747567839234,-450.0,0.0001452,2]
[361439459,1747567839245,-450.0,0.0001452,2]
[361439461,1747567839254,-577.38,0.0001452,2]
[361439463,1747567839262,-450.0,0.0001452,2]
[361439465,1747567839271,-450.0,0.0001452,2]
[361439467,1747567839281,-450.0,0.0001452,2]
[361439469,1747567839290,-500.0,0.000146,2]
[361439470,1747567839300,-450.0,0.00014657,2]
[361439472,1747567839310,-338.69,0.00014657,2]
[361439474,1747567839319,-450.0,0.00014657,2]
[361439476,1747567839328,-450.0,0.00014657,2]
[361439478,1747567839338,-450.0,0.00014657,2]
[361439480,1747567839348,-507.83,0.00014657,2]
[361439482,1747567839357,-450.0,0.00014657,2]
[361439484,1747567839367,-844.84,0.00014657,2]
[361439486,1747567839377,-450.0,0.00014657,2]
[361439488,1747567839386,-450.0,0.00014657,2]
[361439490,1747567839395,-450.0,0.00014657,2]
[361439492,1747567839404,-450.0,0.00014657,2]
[361439494,1747567839413,-577.38,0.00014657,2]
[361439496,1747567839422,-450.0,0.00014657,2]
[361439498,1747567839431,-450.0,0.00014657,2]
[361439500,1747567839440,-4391.05865446,0.00014659,2]
[361439502,1747567839450,-500.0,0.00014743,2]
[361439504,1747567839459,-216.02164005,0.00014757,2]
[361439506,1747567839470,-520.16409903,0.00014765,2]
[361439509,1747567839480,-151.0,0.00014794,2]
[361439511,1747567839490,-151.0,0.00014794,2]
[361439512,1747567839499,-151.0,0.00014794,2]
[361439514,1747567839508,-450.0,0.00014794,2]
[361439516,1747567839518,-450.0,0.00014794,2]
[361439518,1747567839527,-450.0,0.00014794,2]
[361439521,1747567839537,-450.0,0.00014794,2]
[361439523,1747567839547,-507.83,0.00014794,2]
[361439525,1747567839556,-450.0,0.00014794,2]
[361439527,1747567839565,-844.84,0.00014794,2]
[361439529,1747567839575,-450.0,0.00014794,2]
[361439530,1747567839584,-450.0,0.00014794,2]
[361439533,1747567839594,-450.0,0.00014794,2]
[361439534,1747567839603,-450.0,0.00014794,2]
[361439536,1747567839612,-577.38,0.00014794,2]
[361439538,1747567839622,-450.0,0.00014794,2]
[361439540,1747567839631,-450.0,0.00014794,2]
[361439542,1747567839640,-417.9875181,0.00014829,2]
[361439544,1747567839649,-500.0,0.00014913,2]
[361439546,1747567839659,-154.897987,0.00014931,2]
[361439548,1747567839668,-450.0,0.00014931,2]
[361439550,1747567839677,-450.0,0.00014931,2]
[361439552,1747567839687,-450.0,0.00014931,2]
[361439554,1747567839696,-450.0,0.00014931,2]
[361439556,1747567839706,-507.83,0.00014931,2]
[361439558,1747567839715,-450.0,0.00014931,2]
[361439560,1747567839724,-844.84,0.00014931,2]
[361439562,1747567839733,-450.0,0.00014931,2]
[361439564,1747567839742,-450.0,0.00014931,2]
[361439566,1747567839751,-450.0,0.00014931,2]
[361439568,1747567839760,-450.0,0.00014931,2]
[361439570,1747567839769,-577.38,0.00014931,2]
[361439572,1747567839778,-167.02,0.00014931,2]
[361439574,1747567839787,-450.0,0.00014931,2]
[361439576,1747567839796,-353.27679397,0.00015,5]
[361439578,1747567839805,-4391.05865446,0.00015038,2]
[361439580,1747567839814,-452.7,0.00015068,2]
[361439582,1747567839826,-450.0,0.00015068,2]
[361439584,1747567839835,-518.79,0.00015068,2]
[361439586,1747567839845,-450.0,0.00015068,2]
[361439588,1747567839854,-507.83,0.00015068,2]
[361439590,1747567839863,-450.0,0.00015068,2]
[361439592,1747567839872,-844.84,0.00015068,2]
[361439594,1747567839882,-450.0,0.00015068,2]
[361439596,1747567839891,-450.0,0.00015068,2]
[361439598,1747567839900,-450.0,0.00015068,2]
[361439601,1747567839909,-450.0,0.00015068,2]
[361439604,1747567839919,-577.38,0.00015068,2]
[361439608,1747567839929,-450.0,0.00015068,2]
[361439611,1747567839939,-699.24519398,0.00015197,2]
[361439614,1747567839949,-151.0,0.00015205,2]
[361439617,1747567839958,-450.0,0.00015205,2]
[361439620,1747567839968,-450.0,0.00015205,2]
[361439623,1747567839977,-507.83,0.00015205,2]
[361439626,1747567839986,-450.0,0.00015205,2]
[361439629,1747567839995,-844.84,0.00015205,2]
[361439632,1747567840004,-464.76,0.00015205,2]
[361439635,1747567840013,-450.0,0.00015205,2]
[361439638,1747567840023,-450.0,0.00015205,2]
[361439641,1747567840032,-283.87,0.00015205,2]
[361439644,1747567840041,-577.38,0.00015205,2]
[361439647,1747567840050,-450.0,0.00015205,2]
[361439650,1747567840059,-363.3878261,0.0001526,2]
[361439653,1747567840068,-363.3878261,0.00015288,2]
[361439656,1747567840077,-363.3878261,0.00015288,2]
[361439659,1747567840086,-363.3878261,0.00015288,2]
[361439662,1747567840095,-363.3878261,0.00015288,2]
[361439665,1747567840106,-1001.07364211,0.00015291,2]
[361439668,1747567840115,-310.34,0.00015342,2]
[361439671,1747567840125,-450.0,0.00015342,2]
[361439674,1747567840134,-507.83,0.00015342,2]
[361439677,1747567840143,-450.0,0.00015342,2]
[361439680,1747567840152,-844.84,0.00015342,2]
[361439683,1747567840161,-360.8,0.00015342,2]
[361439686,1747567840170,-450.0,0.00015342,2]
[361439689,1747567840179,-577.38,0.00015342,2]
[361439692,1747567840189,-450.0,0.00015342,2]
[361439695,1747567840199,-653.00730596,0.00015409,2]
[361439698,1747567840208,-4391.05865446,0.00015417,2]
[361439701,1747567840217,-1000.0,0.0001546,2]
[361439704,1747567840226,-450.0,0.00015479,2]
[361439706,1747567840235,-507.83,0.00015479,2]
[361439709,1747567840244,-450.0,0.00015479,2]
[361439712,1747567840254,-844.84,0.00015479,2]
[361439715,1747567840263,-450.0,0.00015479,2]
[361439717,1747567840272,-577.38,0.00015479,2]
[361439720,1747567840281,-450.0,0.00015479,2]
[361439723,1747567840290,-151.0,0.00015616,2]
[361439726,1747567840299,-151.0,0.00015616,2]
[361439729,1747567840309,-330.77,0.00015616,2]
[361439732,1747567840319,-507.83,0.00015616,2]
[361439734,1747567840328,-450.0,0.00015616,2]
[361439736,1747567840337,-844.84,0.00015616,2]
[361439738,1747567840347,-450.0,0.00015616,2]
[361439740,1747567840356,-577.38,0.00015616,2]
[361439743,1747567840365,-450.0,0.00015616,2]
[361439746,1747567840374,-151.0,0.00015682,2]
[361439749,1747567840384,-151.0,0.00015692,2]
[361439753,1747567840401,-151.0,0.00015692,2]
[361439756,1747567840413,-151.0,0.00015718,2]
[361439759,1747567840422,-151.0,0.00015718,2]
[361439762,1747567840432,-500.0,0.00015726,2]
[361439765,1747567840443,-500.0,0.00015726,2]
[361439768,1747567840453,-500.0,0.00015726,2]
[361439772,1747567840463,-569.22565174,0.00015726,2]
[361439775,1747567840472,-348.56026514,0.00015726,2]
[361439778,1747567840482,-500.0,0.00015726,2]
[361439781,1747567840492,-500.0,0.00015726,2]
[361439784,1747567840502,-12500.0,0.00015727,2]
[361439787,1747567840511,-12500.0,0.00015727,2]
[361439790,1747567840522,-151.0,0.00015735,2]
[361439793,1747567840532,-151.0,0.00015735,2]
[361439796,1747567840541,-151.0,0.00015735,2]
[361439799,1747567840550,-12500.0,0.00015735,2]
[361439802,1747567840560,-12500.0,0.00015735,2]
[361439804,1747567840569,-12500.0,0.00015744,2]
[361439807,1747567840578,-12500.0,0.00015744,2]
[361439809,1747567840588,-12500.0,0.00015753,2]
[361439812,1747567840598,-507.83,0.00015753,2]
[361439815,1747567840608,-450.0,0.00015753,2]
[361439817,1747567840617,-844.84,0.00015753,2]
[361439820,1747567840626,-450.0,0.00015753,2]
[361439823,1747567840635,-12500.0,0.00015753,2]
[361439826,1747567840644,-577.38,0.00015753,2]
[361439829,1747567840654,-450.0,0.00015753,2]
[361439832,1747567840663,-4391.05865446,0.00015797,2]
[361439834,1747567840672,-499.999999,0.0001587,2]
[361439837,1747567840682,-507.83,0.0001589,2]
[361439840,1747567840692,-450.0,0.0001589,2]
[361439843,1747567840702,-844.84,0.0001589,2]
[361439846,1747567840711,-450.0,0.0001589,2]
[361439849,1747567840721,-577.38,0.0001589,2]
[361439852,1747567840731,-362.08,0.0001589,2]
[361439855,1747567840740,-1500.0,0.00016008,2]
[361439858,1747567840751,-507.83,0.00016027,2]
[361439861,1747567840760,-450.0,0.00016027,2]
[361439863,1747567840770,-844.84,0.00016027,2]
[361439866,1747567840779,-450.0,0.00016027,2]
[361439869,1747567840789,-577.38,0.00016027,2]
[361439872,1747567840798,-382.54966305,0.00016136,2]
[361439875,1747567840807,-551.799964,0.00016164,2]
[361439878,1747567840817,-551.799964,0.00016164,2]
[361439880,1747567840830,-151.0,0.00016164,2]
[361439883,1747567840839,-155.554734,0.00016164,2]
[361439886,1747567840850,-151.0,0.00016164,2]
[361439889,1747567840859,-507.83,0.00016164,2]
[361439892,1747567840870,-450.0,0.00016164,2]
[361439895,1747567840879,-844.84,0.00016164,2]
[361439898,1747567840889,-450.0,0.00016164,2]
[361439900,1747567840899,-577.38,0.00016164,2]
[361439903,1747567840909,-500.0,0.00016164,2]
[361439906,1747567840918,-539.46266098,0.00016164,2]
[361439909,1747567840927,-500.0,0.00016164,2]
[361439912,1747567840936,-500.0,0.00016164,2]
[361439915,1747567840946,-4391.05865446,0.00016176,2]
[361439918,1747567840955,-151.0,0.00016176,2]
[361439921,1747567840964,-363.3878261,0.00016219,2]
[361439924,1747567840974,-363.3878261,0.00016219,2]
[361439926,1747567840983,-726.5112498,0.00016219,2]
[361439929,1747567840992,-151.0,0.00016301,2]
[361439932,1747567841001,-151.0,0.00016301,2]
[361439935,1747567841011,-507.83,0.00016301,2]
[361439938,1747567841020,-450.0,0.00016301,2]
[361439941,1747567841030,-844.84,0.00016301,2]
[361439943,1747567841039,-450.0,0.00016301,2]
[361439946,1747567841048,-577.38,0.00016301,2]
[361439949,1747567841058,-707.0,0.00016381,2]
[361439952,1747567841068,-2237.0,0.00016381,2]
[361439955,1747567841077,-404.0,0.00016381,2]
[361439958,1747567841086,-500.0,0.00016438,2]
[361439961,1747567841095,-502.195298,0.00016438,2]
[361439964,1747567841105,-507.83,0.00016438,2]
[361439967,1747567841114,-342.13,0.00016438,2]
[361439970,1747567841123,-844.84,0.00016438,2]
[361439973,1747567841132,-214.86,0.00016438,2]
[361439976,1747567841143,-577.38,0.00016438,2]
[361439978,1747567841154,-152.0,0.00016438,3]
[361439980,1747567841163,-4391.05865446,0.00016555,2]
[361439982,1747567841172,-548.65580965,0.00016556,2]
[361439984,1747567841182,-507.83,0.00016575,2]
[361439986,1747567841191,-844.84,0.00016575,2]
[361439988,1747567841201,-577.38,0.00016575,2]
[361439990,1747567841210,-150.154,0.00016594,2]
[361439992,1747567841220,-151.0,0.00016594,2]
[361439994,1747567841229,-1164.4543052,0.0001663,2]
[361439997,1747567841239,-507.83,0.00016712,2]
[361439999,1747567841249,-844.84,0.00016712,2]
[361440001,1747567841259,-577.38,0.00016712,2]
[361440003,1747567841268,-699.24519398,0.00016797,2]
[361440005,1747567841277,-322.677,0.00016849,2]
[361440007,1747567841286,-177.08101617,0.00016849,2]
[361440009,1747567841295,-508.0,0.00016849,2]
[361440011,1747567841305,-844.91296164,0.00016849,2]
[361440013,1747567841314,-577.48,0.00016849,2]
[361440015,1747567841323,-4391.05865446,0.00016934,2]
[361440017,1747567841333,-4391.05865446,0.00017314,2]
[361440019,1747567841342,-207.4,0.00017448,2]
[361440020,1747567841351,-153.2519427,0.00017452,2]
[361440022,1747567841360,-569.6479192,0.00017452,2]
[361440024,1747567841369,-162.5302997,0.00017452,2]
[361440026,1747567841379,-158.0682864,0.00017452,2]
[361440028,1747567841388,-569.6479192,0.00017452,2]
[361440030,1747567841396,-158.0682864,0.00017452,2]
[361440032,1747567841406,-569.6479192,0.00017452,2]
[361440034,1747567841415,-569.6479192,0.00017452,2]
[361440036,1747567841424,-158.0682864,0.00017452,2]
[361440038,1747567841433,-175.9147158,0.00017452,2]
[361440040,1747567841443,-158.0682864,0.00017452,2]
[361440042,1747567841453,-175.9147158,0.00017452,2]
[361440045,1747567841465,-4391.05865446,0.00017693,2]
[361440047,1747567841475,-96553.2068095,0.000179,2]
[361440071,1747567841626,-1019.6261697,0.000179,2]
[361440075,1747567841642,-483.06753868,0.000179,2]
[361440079,1747567841653,-14227.09035802,0.000179,2]
[361440082,1747567841663,-151.0,0.000179,2]
[361440086,1747567841674,-3074.73496718,0.00018,2]
[361440089,1747567841683,-1520.62879215,0.00018072,2]
[361443148,1747568040593,-197.99958127,0.00013424,2]
[361443150,1747568102530,-102.00041873,0.00013424,2]
[361443151,1747568102551,-95.99916254,0.00013643,2]
[361443152,1747568105698,-167.620862,0.00013643,2]
[361443153,1747568108349,-373.53925239,0.00013643,2]
[361443154,1747568110482,-197.02240587,0.00013598,2]
[361443155,1747568112150,-264.87886817,0.00013598,2]
[361443156,1747568112172,-16.51429849,0.00013643,2]
[361443157,1747568115272,-151.9366327,0.00013462,2]
[361443159,1747568120530,-112.94223547,0.00013462,2]
[361443160,1747568120552,-121.64179373,0.00013643,2]
[361443161,1747568123265,-247.94018899,0.00013643,2]
[361443162,1747568124960,-245.55683349,0.00013643,2]
[361443163,1747568126458,-286.84952252,0.00013643,2]
[361443164,1747568129217,-181.19864509,0.00013643,2]
[361443165,1747568133577,-423.1303243,0.00013507,2]
[361443166,1747568136648,-83.81413097,0.00013507,2]
[361443167,1747568136669,-38.89628766,0.00013643,2]
[361443168,1747568136691,-113.0753315,0.00013697,2]
[361443169,1747568139789,-162.30645893,0.00013697,2]
[361443170,1747568142606,-24.61820957,0.00013697,2]
[361443171,1747568142629,-205.28591295,0.00013698,2]
[361443172,1747568144117,-210.27881232,0.00013698,2]
[361443173,1747568147308,-34.43527473,0.00013698,2]
[361443174,1747568147331,-258.04487206,0.00013698,2]
[361443175,1747568149580,-191.95512794,0.00013698,2]
[361443176,1747568149604,-202.69353878,0.00013698,2]
[361443177,1747568153809,-228.78780633,0.00013698,2]
[361443178,1747568156422,-18.51865489,0.00013698,2]
[361443179,1747568156446,-436.94689675,0.00013698,2]
[361443180,1747568158568,-39.54310325,0.00013698,2]
[361443181,1747568158591,-167.50411449,0.00013698,2]
[361443182,1747568160289,-170.07335641,0.00013698,2]
[361443183,1747568162954,-290.70444987,0.00013561,2]
[361443187,1747568830975,174.524965,0.00013132,120]
[361443202,1747569032589,-13559.7617831,0.00012698,2]
[361443204,1747569032598,-174.524965,0.00013001,2]
[361443206,1747569032607,-174.524965,0.00013132,2]
[361443207,1747569032616,-181.23584675,0.00013697,2]
[361443208,1747569032625,-491.55498854,0.00013697,2]
[361443209,1747569032634,-500.0,0.00013697,2]
[361443210,1747569032644,-500.0,0.00013697,2]
[361443211,1747569032653,-500.0,0.00013697,2]
[361443212,1747569032662,-387.1331073,0.00013697,2]
[361443213,1747569032672,-500.0,0.00013697,2]
[361443214,1747569032680,-500.0,0.00013697,2]
[361443215,1747569032689,-500.0,0.00013697,2]
[361443216,1747569032698,-518.7704133,0.00013697,2]
[361443217,1747569032707,-500.0,0.00013697,2]
[361443218,1747569032716,-474.34372709,0.00013697,2]
[361443219,1747569032725,-500.0,0.00013697,2]
[361443220,1747569032734,-500.0,0.00013697,2]
[361443221,1747569032743,-500.0,0.00013697,2]
[361443222,1747569032752,-500.0,0.00013697,2]
[361443223,1747569032761,-500.0,0.00013697,2]
[361443224,1747569032771,-450.0,0.00013698,2]
[361443225,1747569032783,-450.0,0.00013698,2]
[361443226,1747569032792,-450.0,0.00013698,2]
[361443227,1747569032801,-450.0,0.00013698,2]
[361443228,1747569032811,-450.0,0.00013698,2]
[361443229,1747569032820,-450.0,0.00013698,2]
[361443230,1747569032829,-450.0,0.00013698,2]
[361443231,1747569032838,-450.0,0.00013698,2]
[361443232,1747569032848,-450.0,0.00013698,2]
[361443233,1747569032857,-450.0,0.00013698,2]
[361443234,1747569032867,-439.30617727,0.00013698,2]
[361443235,1747569032875,-450.0,0.00013698,2]
[361443236,1747569032885,-450.0,0.00013698,2]
[361443237,1747569032894,-450.0,0.00013698,2]
[361443238,1747569032903,-450.0,0.00013698,2]
[361443239,1747569032912,-450.0,0.00013698,2]
[361443241,1747569032921,-450.0,0.00013698,2]
[361443243,1747569032931,-450.0,0.00013698,2]
[361443245,1747569032940,-400.0,0.00013698,2]
[361443247,1747569032949,-450.0,0.00013698,2]
[361443249,1747569032958,-450.0,0.00013698,2]
[361443251,1747569032968,-450.0,0.00013698,2]
[361443253,1747569032977,-450.0,0.00013698,2]
[361443255,1747569032987,-315.34501806,0.00013698,2]
[361443257,1747569032996,-450.0,0.00013698,2]
[361443260,1747569033006,-450.0,0.00013698,2]
[361443262,1747569033015,-450.0,0.00013698,2]
[361443264,1747569033024,-450.0,0.00013698,2]
[361443265,1747569033034,-450.0,0.00013698,2]
[361443268,1747569033044,-450.0,0.00013698,2]
[361443270,1747569033053,-450.0,0.00013698,2]
[361443271,1747569033063,-450.0,0.00013698,2]
[361443273,1747569033072,-450.0,0.00013698,2]
[361443276,1747569033081,-450.0,0.00013698,2]